lending/lending_fUSD_20251124
["ID","MTS","AMOUNT","RATE_DAILY","PERIOD"]
[394786800,1763947845406,-500.0,0.00038356,8]
[394786801,1763947845415,-500.0,0.00038356,8]
[394786802,1763947845426,-500.0,0.00038356,8]
[394786803,1763947845436,-500.0,0.00038356,8]
[394786804,1763947845444,-500.0,0.00038356,8]
[394786806,1763947845454,-594.55,0.00038356,8]
[394786808,1763947845464,-500.0,0.00038356,8]
[394786810,1763947845473,-500.0,0.00038356,8]
[394786811,1763947845483,-500.0,0.00038356,8]
[394786814,1763947845492,-500.0,0.00038356,8]
[394786816,1763947845501,-500.0,0.00038356,8]
[394786818,1763947845510,-500.0,0.00038356,8]
[394786820,1763947845519,-500.0,0.00038356,8]
[394786822,1763947845528,-500.0,0.00038356,8]
[394786824,1763947845538,-510.68,0.00038356,8]
[394786826,1763947845547,-500.0,0.00038356,8]
[394786827,1763947845556,-500.0,0.00038356,8]
[394786828,1763947845565,-500.0,0.00038356,8]
[394786829,1763947845575,-500.0,0.00038356,8]
[394786830,1763947845584,-1329.76,0.00038356,8]
[394786831,1763947845593,-500.0,0.00038356,8]
[394786832,1763947845603,-500.0,0.00038356,8]
[394786833,1763947845612,-242.78521945,0.00038356,8]
[394786834,1763947845621,-500.0,0.00038356,8]
[394786835,1763947845631,-500.0,0.00038356,8]
[394786836,1763947845644,-500.0,0.00038356,8]
[394786837,1763947845654,-500.0,0.00038356,2]
[394786838,1763947845663,-500.0,0.00038356,8]
[394786839,1763947845672,-500.0,0.00038356,8]
[394786840,1763947845683,-500.0,0.00038356,2]
[394786841,1763947845692,-500.0,0.00038356,8]
[394786842,1763947845702,-500.0,0.00038356,8]
[394786843,1763947845711,-500.0,0.00038356,8]
[394786844,1763947845722,-500.0,0.00038356,8]
[394786845,1763947845733,-500.0,0.00038356,8]
[394786846,1763947845743,-500.0,0.00038356,8]
[394786847,1763947845753,-500.0,0.00038356,8]
[394786848,1763947845762,-500.0,0.00038356,8]
[394786849,1763947845772,-500.0,0.00038356,8]
[394786850,1763947845781,-500.0,0.00038356,8]
[394786851,1763947845791,-500.0,0.00038356,8]
[394786852,1763947845801,-500.0,0.00038356,8]
[394786853,1763947845811,-500.0,0.00038356,8]
[394786854,1763947845820,-500.0,0.00038356,8]
[394786855,1763947845829,-500.0,0.00038356,8]
[394786856,1763947845838,-500.0,0.00038356,8]
[394786857,1763947845847,-500.0,0.00038356,8]
[394786858,1763947845857,-500.0,0.00038356,8]
[394786859,1763947845866,-500.0,0.00038356,8]
[394786860,1763947845875,-500.0,0.00038356,8]
[394786861,1763947845884,-500.0,0.00038356,8]
[394786862,1763947845894,-500.0,0.00038356,8]
[394786863,1763947845904,-500.0,0.00038356,8]
[394786864,1763947845913,-500.0,0.00038356,8]
[394786865,1763947845923,-500.0,0.00038356,8]
[394786866,1763947845932,-500.0,0.00038356,8]
[394786867,1763947845942,-500.0,0.00038356,8]
[394786868,1763947845951,-466.6808793,0.00038356,8]
[394786869,1763947845961,-500.0,0.00038356,8]
[394786870,1763947845970,-500.0,0.00038356,8]
[394786871,1763947845980,-500.0,0.00038356,8]
[394786872,1763947845989,-606.87572638,0.00038356,8]
[394786873,1763947845999,-596.94386131,0.00038356,8]
[394786874,1763947846008,-500.0,0.00038356,8]
[394786875,1763947846017,-500.0,0.00038356,8]
[394786876,1763947846027,-500.0,0.00038356,8]
[394786877,1763947846037,-500.0,0.00038356,8]
[394786878,1763947846050,-500.0,0.00038356,8]
[394786879,1763947846060,-1000.0,0.00038356,8]
[394786880,1763947846069,-500.0,0.00038356,8]
[394786881,1763947846079,-500.0,0.00038356,8]
[394786882,1763947846089,-500.0,0.00038356,8]
[394786883,1763947846098,-504.91831124,0.00038356,8]
[394786884,1763947846108,-500.0,0.00038356,8]
[394786885,1763947846118,-500.0,0.00038356,8]
[394786886,1763947846128,-502.34840646,0.00038356,8]
[394786887,1763947846137,-273.87353971,0.00038356,8]
[394786888,1763947846146,-506.28535476,0.00038356,8]
[394786889,1763947846155,-502.09141129,0.00038356,8]
[394786890,1763947846165,-502.16494796,0.00038356,8]
[394786891,1763947846175,-249.90623396,0.00038356,8]
[394786892,1763947846185,-551.78924854,0.00038356,8]
[394786893,1763947846195,-500.0,0.00038356,8]
[394786894,1763947846205,-269.30980586,0.00038356,8]
[394786895,1763947846214,-502.45259626,0.00038356,8]
[394786896,1763947846223,-500.0,0.00038356,8]
[394786897,1763947846233,-502.89011983,0.00038356,8]
[394786898,1763947846243,-150.29343235,0.00038356,8]
[394786899,1763947846253,-183.12963298,0.00038356,2]
[394786900,1763947846263,-600.0,0.00038356,30]
[394786901,1763947846272,-300.0,0.00038356,3]
[394786902,1763947846282,-150.0,0.00038373,5]
[394786903,1763947846292,-500.0,0.00038373,5]
[394786904,1763947846301,-417.58102774,0.00038373,2]
[394786905,1763947846311,-322.28849709,0.00038373,5]
[394786906,1763947846321,-413.58495286,0.00038373,5]
[394786907,1763947846330,-500.0,0.00038373,5]
[394786908,1763947846339,-500.0,0.00038373,5]
[394786909,1763947846348,-500.0,0.00038373,5]
[394786910,1763947846358,-500.0,0.00038373,5]
[394786911,1763947846367,-172.82138905,0.00038373,5]
[394786912,1763947846376,-500.2729996,0.00038373,5]
[394786913,1763947846386,-500.0,0.00038373,5]
[394786914,1763947846395,-505.95880114,0.00038373,5]
[394786915,1763947846404,-500.0,0.00038373,5]
[394786916,1763947846414,-500.93609183,0.00038373,5]
[394786917,1763947846424,-500.0,0.00038373,5]
[394786918,1763947846434,-372.51181017,0.00038373,5]
[394786919,1763947846443,-500.0,0.00038373,5]
[394786920,1763947846452,-500.0,0.00038373,5]
[394786921,1763947846461,-520.88092567,0.00038373,5]
[394786922,1763947846471,-500.0,0.00038373,5]
[394786923,1763947846481,-501.54182264,0.00038373,5]
[394786924,1763947846490,-501.27256296,0.00038373,5]
[394786925,1763947846499,-500.48572372,0.00038373,5]
[394786926,1763947846509,-486.89386542,0.00038373,5]
[394786927,1763947846518,-500.48997271,0.00038373,5]
[394786928,1763947846528,-162.92450325,0.00038373,5]
[394786929,1763947846537,-500.86341924,0.00038373,5]
[394786930,1763947846546,-166.25018838,0.00038373,5]
[394786931,1763947846555,-164.12207296,0.00038373,5]
[394786932,1763947846564,-501.02178861,0.00038373,5]
[394786933,1763947846573,-500.0,0.00038373,5]
[394786934,1763947846583,-158.79338087,0.00038373,5]
[394786935,1763947846593,-500.33650014,0.00038373,5]
[394786936,1763947846602,-500.73816641,0.00038373,5]
[394786937,1763947846612,-505.39968933,0.00038373,5]
[394786938,1763947846621,-501.77996762,0.00038373,5]
[394786939,1763947846631,-305.82149311,0.00038373,5]
[394786940,1763947846641,-1000.0,0.00038383,120]
[394786941,1763947846655,-16057.13610768,0.00038393,30]
[394786942,1763947846664,-425.21711924,0.00038393,30]
[394786943,1763947846825,-299.0,0.00038396,7]
[394786944,1763947846836,-200.0,0.00038401,2]
[394786945,1763947846845,-1000.0,0.0003841,120]
[394786946,1763947846854,-1000.0,0.00038438,120]
[394786947,1763947846864,-7457.38824684,0.00038445,2]
[394786948,1763947846873,-944.77,0.00038465,30]
[394786949,1763947846883,-1000.0,0.00038465,120]
[394786950,1763947846892,-1000.0,0.00038493,120]
[394786951,1763947846902,-1000.0,0.0003852,120]
[394786952,1763947846911,-1000.0,0.00038547,120]
[394786953,1763947846921,-1000.0,0.00038575,120]
[394786954,1763947846931,-1000.0,0.00038602,120]
[394786955,1763947846940,-4364.14610704,0.00038607,2]
[394786956,1763947846949,-23420.79254629,0.0003863,21]
[394786957,1763947846960,-506.62920117,0.0003863,8]
[394786958,1763947846971,-500.0,0.0003863,8]
[394786959,1763947846985,-501.44984762,0.0003863,8]
[394786960,1763947846995,-500.0,0.0003863,8]
[394786961,1763947847005,-500.0,0.0003863,8]
[394786962,1763947847016,-500.0,0.0003863,8]
[394786963,1763947847027,-555.02843165,0.0003863,8]
[394786964,1763947847037,-500.0,0.0003863,8]
[394786965,1763947847047,-679.24,0.0003863,8]
[394786966,1763947847057,-500.0,0.0003863,8]
[394786967,1763947847067,-527.03747122,0.0003863,8]
[394786968,1763947847077,-500.0,0.0003863,8]
[394786969,1763947847088,-500.0,0.0003863,8]
[394786970,1763947847097,-500.0,0.0003863,8]
[394786971,1763947847106,-623.32007269,0.0003863,8]
[394786972,1763947847116,-632.45654694,0.0003863,8]
[394786973,1763947847126,-500.0,0.0003863,8]
[394786974,1763947847136,-171.32,0.0003863,8]
[394786975,1763947847146,-500.0,0.0003863,8]
[394786976,1763947847156,-500.0,0.0003863,8]
[394786977,1763947847166,-500.0,0.0003863,8]
[394786978,1763947847176,-500.0,0.0003863,8]
[394786979,1763947847187,-222.95,0.0003863,8]
[394786980,1763947847197,-438.85120509,0.0003863,8]
[394786981,1763947847208,-300.0,0.0003863,2]
[394786982,1763947847227,-500.0,0.0003863,8]
[394786983,1763947847241,-594.83666689,0.0003863,8]
[394786984,1763947847251,-611.4,0.0003863,8]
[394786985,1763947847262,-500.0,0.0003863,8]
[394786986,1763947847272,-500.0,0.0003863,8]
[394786987,1763947847282,-500.0,0.0003863,8]
[394786988,1763947847292,-500.0,0.0003863,8]
[394786989,1763947847303,-1000.0,0.0003863,120]
[394786990,1763947847312,-500.0,0.0003863,8]
[394786991,1763947847323,-500.0,0.0003863,8]
[394786992,1763947847334,-445.53697296,0.0003863,8]
[394786993,1763947847347,-500.0,0.0003863,8]
[394786994,1763947847365,-500.0,0.0003863,8]
[394786995,1763947847378,-500.0,0.0003863,8]
[394786996,1763947847387,-500.0,0.0003863,8]
[394786997,1763947847396,-500.0,0.0003863,8]
[394786998,1763947847406,-265.23,0.0003863,8]
[394786999,1763947847416,-500.0,0.0003863,8]
[394787000,1763947847425,-500.0,0.0003863,8]
[394787001,1763947847435,-500.0,0.0003863,8]
[394787002,1763947847445,-500.0,0.0003863,8]
[394787003,1763947847455,-500.0,0.0003863,8]
[394787004,1763947847465,-500.0,0.0003863,8]
[394787005,1763947847474,-500.0,0.0003863,8]
[394787006,1763947847484,-238.83,0.0003863,8]
[394787007,1763947847494,-575.7,0.0003863,8]
[394787008,1763947847503,-500.0,0.0003863,8]
[394787009,1763947847512,-500.0,0.0003863,8]
[394787010,1763947847522,-291.98,0.0003863,8]
[394787011,1763947847531,-500.0,0.0003863,8]
[394787012,1763947847541,-1067.0,0.0003863,8]
[394787013,1763947847550,-500.0,0.0003863,8]
[394787014,1763947847560,-500.0,0.0003863,8]
[394787015,1763947847570,-500.0,0.0003863,8]
[394787016,1763947847579,-500.0,0.0003863,8]
[394787017,1763947847588,-500.0,0.0003863,8]
[394787018,1763947847597,-500.0,0.0003863,8]
[394787019,1763947847606,-500.0,0.0003863,8]
[394787020,1763947847616,-500.0,0.0003863,8]
[394787021,1763947847625,-500.0,0.0003863,8]
[394787022,1763947847635,-500.0,0.0003863,8]
[394787023,1763947847649,-500.0,0.0003863,8]
[394787024,1763947847658,-500.0,0.0003863,8]
[394787025,1763947847668,-500.0,0.0003863,8]
[394787026,1763947847679,-500.0,0.0003863,8]
[394787027,1763947847688,-500.0,0.0003863,8]
[394787028,1763947847697,-500.0,0.0003863,8]
[394787029,1763947847707,-500.0,0.0003863,8]
[394787030,1763947847717,-1329.76,0.0003863,8]
[394787031,1763947847726,-500.0,0.0003863,8]
[394787032,1763947847737,-500.0,0.0003863,8]
[394787033,1763947847746,-500.0,0.0003863,8]
[394787034,1763947847757,-500.0,0.0003863,2]
[394787035,1763947847767,-500.0,0.0003863,8]
[394787036,1763947847778,-500.0,0.0003863,8]
[394787037,1763947847787,-500.0,0.0003863,8]
[394787038,1763947847797,-500.0,0.0003863,8]
[394787039,1763947847807,-500.0,0.0003863,8]
[394787040,1763947847816,-500.0,0.0003863,8]
[394787041,1763947847827,-500.0,0.0003863,8]
[394787042,1763947847839,-500.0,0.0003863,8]
[394787043,1763947847848,-500.0,0.0003863,8]
[394787044,1763947847858,-500.0,0.0003863,8]
[394787045,1763947847867,-500.0,0.0003863,8]
[394787046,1763947847880,-500.0,0.0003863,8]
[394787047,1763947847889,-500.0,0.0003863,8]
[394787048,1763947847899,-500.0,0.0003863,8]
[394787049,1763947847907,-500.0,0.0003863,8]
[394787050,1763947847917,-500.0,0.0003863,8]
[394787051,1763947847926,-500.0,0.0003863,8]
[394787052,1763947847935,-500.0,0.0003863,8]
[394787053,1763947847944,-361.38570182,0.0003863,8]
[394787054,1763947847954,-500.0,0.0003863,8]
[394787055,1763947847964,-500.0,0.0003863,8]
[394787056,1763947847973,-500.0,0.0003863,8]
[394787057,1763947847984,-508.38174731,0.0003863,8]
[394787058,1763947847994,-569.55605937,0.0003863,8]
[394787059,1763947848003,-1054.54731938,0.0003863,8]
[394787060,1763947848012,-568.17806323,0.0003863,8]
[394787061,1763947848022,-500.0,0.0003863,8]
[394787062,1763947848031,-500.0,0.0003863,8]
[394787063,1763947848041,-502.40793893,0.0003863,8]
[394787064,1763947848050,-579.79676342,0.0003863,8]
[394787065,1763947848060,-500.0,0.0003863,8]
[394787066,1763947848069,-503.54274316,0.0003863,8]
[394787067,1763947848079,-600.0,0.0003863,30]
[394787068,1763947848089,-1000.0,0.00038657,120]
[394787069,1763947848100,-1000.0,0.00038684,120]
[394787070,1763947848110,-5495.6647,0.00038702,2]
[394787071,1763947848119,-899.9786,0.00038702,2]
[394787072,1763947848129,-1000.0,0.00038712,120]
[394787073,1763947848139,-944.77,0.00038739,30]
[394787074,1763947848148,-1000.0,0.00038739,120]
[394787075,1763947848159,-1000.0,0.00038767,120]
[394787076,1763947848169,-1000.0,0.00038794,120]
[394787077,1763947848178,-7457.38824684,0.00038795,2]
[394787078,1763947848188,-799.10894391,0.00038821,120]
[394787079,1763947848198,-172.77,0.00038822,2]
[394787080,1763947848212,-242.0,0.00038877,120]
[394787081,1763947848222,-166.66,0.00038892,2]
[394787082,1763947848232,-722324.89044767,0.000389,2]
[394787083,1763947848241,-679.24,0.00038904,8]
[394787084,1763947848250,-500.0,0.00038904,8]
[394787085,1763947848259,-500.0,0.00038904,8]
[394787086,1763947848269,-500.0,0.00038904,8]
[394787087,1763947848279,-500.0,0.00038904,8]
[394787088,1763947848289,-500.0,0.00038904,8]
[394787089,1763947848299,-500.0,0.00038904,8]
[394787090,1763947848311,-500.0,0.00038904,8]
[394787091,1763947848321,-500.0,0.00038904,8]
[394787092,1763947848330,-254.76,0.00038904,8]
[394787093,1763947848339,-474.8471829,0.00038904,8]
[394787094,1763947848348,-500.0,0.00038904,8]
[394787095,1763947848357,-500.0,0.00038904,8]
[394787096,1763947848366,-500.0,0.00038904,8]
[394787097,1763947848376,-500.0,0.00038904,8]
[394787098,1763947848385,-500.0,0.00038904,8]
[394787099,1763947848394,-500.0,0.00038904,8]
[394787100,1763947848403,-1067.0,0.00038904,8]
[394787101,1763947848412,-500.0,0.00038904,8]
[394787102,1763947848421,-500.0,0.00038904,8]
[394787103,1763947848430,-500.0,0.00038904,8]
[394787104,1763947848439,-500.0,0.00038904,8]
[394787105,1763947848447,-500.0,0.00038904,8]
[394787106,1763947848457,-604.67879574,0.00038904,8]
[394787107,1763947848466,-445.57256651,0.00038904,8]
[394787108,1763947848476,-500.0,0.00038904,8]
[394787109,1763947848486,-500.0,0.00038904,8]
[394787110,1763947848496,-1329.76,0.00038904,8]
[394787111,1763947848505,-500.0,0.00038904,8]
[394787112,1763947848514,-500.0,0.00038904,8]
[394787113,1763947848523,-500.0,0.00038904,8]
[394787114,1763947848532,-500.0,0.00038904,8]
[394787115,1763947848541,-500.0,0.00038904,8]
[394787116,1763947848550,-500.0,0.00038904,8]
[394787117,1763947848559,-500.0,0.00038904,8]
[394787118,1763947848568,-500.0,0.00038904,8]
[394787119,1763947848578,-500.0,0.00038904,8]
[394787120,1763947848586,-186.17470191,0.00038904,8]
[394787121,1763947848595,-500.0,0.00038904,8]
[394787122,1763947848604,-500.0,0.00038904,8]
[394787123,1763947848614,-500.0,0.00038904,8]
[394787124,1763947848623,-423.08975585,0.00038904,8]
[394787125,1763947848633,-500.0,0.00038904,8]
[394787126,1763947848645,-600.0,0.00038904,30]
[394787127,1763947848654,-250.0,0.00038921,5]
[394787128,1763947848663,-1000.0,0.00038921,5]
[394787129,1763947848672,-1000.0,0.00038921,5]
[394787130,1763947848682,-1000.0,0.00038921,5]
[394787131,1763947848691,-500.70866574,0.00038921,5]
[394787132,1763947848700,-505.0559587,0.00038921,5]
[394787133,1763947848714,-368.86223502,0.00038921,5]
[394787134,1763947848726,-501.75431702,0.00038921,5]
[394787135,1763947848736,-1000.0,0.00038921,5]
[394787136,1763947848746,-560.08329354,0.00038921,5]
[394787137,1763947848755,-411.743659,0.00038925,2]
[394787138,1763947848763,-4364.14610704,0.00038989,2]
[394787139,1763947848772,-168.0,0.00038992,120]
[394787140,1763947848782,-9691.77108002,0.00039,2]
[394787141,1763947848791,-168.0,0.00039006,2]
[394787142,1763947848800,-944.77,0.00039013,30]
[394787143,1763947848810,-957.74,0.00039014,2]
[394787144,1763947848819,-458.0,0.00039026,120]
[394787145,1763947848828,-479.01,0.00039041,2]
[394787146,1763947848838,-163.08,0.00039051,2]
[394787147,1763947848847,-299.0,0.00039087,2]
[394787148,1763947848856,-701.46,0.00039096,2]
[394787149,1763947848865,-478.87,0.00039096,2]
[394787150,1763947848874,-701.46,0.00039096,2]
[394787151,1763947848883,-701.46,0.00039096,2]
[394787152,1763947848895,-701.46,0.00039096,2]
[394787153,1763947848904,-607.64,0.00039096,2]
[394787154,1763947848919,-164.85,0.00039139,2]
[394787155,1763947848936,-7457.38824684,0.00039146,2]
[394787156,1763947848946,-168.0,0.00039175,2]
[394787157,1763947848955,-679.24,0.00039178,8]
[394787158,1763947848964,-500.0,0.00039178,8]
[394787159,1763947848973,-500.0,0.00039178,8]
[394787160,1763947848984,-422.0204741,0.00039178,8]
[394787161,1763947848993,-500.0,0.00039178,8]
[394787162,1763947849003,-500.0,0.00039178,8]
[394787163,1763947849012,-500.0,0.00039178,8]
[394787164,1763947849022,-542.23940884,0.00039178,8]
[394787165,1763947849031,-500.0,0.00039178,8]
[394787166,1763947849041,-500.0,0.00039178,8]
[394787167,1763947849050,-500.0,0.00039178,8]
[394787168,1763947849060,-500.0,0.00039178,8]
[394787169,1763947849071,-500.0,0.00039178,8]
[394787170,1763947849080,-1067.0,0.00039178,8]
[394787171,1763947849090,-500.0,0.00039178,8]
[394787172,1763947849099,-500.0,0.00039178,8]
[394787173,1763947849108,-500.0,0.00039178,8]
[394787174,1763947849121,-158.81980933,0.00039178,8]
[394787175,1763947849132,-500.0,0.00039178,8]
[394787176,1763947849142,-500.0,0.00039178,8]
[394787177,1763947849152,-1329.76,0.00039178,8]
[394787178,1763947849162,-500.0,0.00039178,8]
[394787179,1763947849171,-417.68898614,0.00039178,8]
[394787180,1763947849181,-500.0,0.00039178,8]
[394787181,1763947849226,-500.0,0.00039178,8]
[394787182,1763947849237,-500.0,0.00039178,8]
[394787183,1763947849246,-500.0,0.00039178,8]
[394787184,1763947849256,-500.0,0.00039178,8]
[394787185,1763947849265,-500.0,0.00039178,8]
[394787186,1763947849274,-500.0,0.00039178,8]
[394787187,1763947849283,-500.0,0.00039178,8]
[394787188,1763947849292,-181.20232474,0.00039178,8]
[394787189,1763947849302,-600.0,0.00039178,30]
[394787190,1763947849311,-500.0,0.0003919,8]
[394787191,1763947849319,-500.0,0.0003919,7]
[394787192,1763947849328,-433.22462806,0.0003919,8]
[394787193,1763947849338,-156.31239139,0.00039262,8]
[394787194,1763947849348,-1338.45612,0.0003927,2]
[394787195,1763947849358,-4315.0,0.00039272,5]
[394787196,1763947849376,-944.77,0.00039287,30]
[394787197,1763947849387,-500.0,0.00039356,7]
[394787198,1763947849396,-500.0,0.00039356,7]
[394787199,1763947849406,-900.0,0.00039356,7]
[394787200,1763947849419,-150.0,0.0003937,2]
[394787201,1763947849429,-150.0,0.0003937,2]
[394787202,1763947849439,-150.0,0.0003937,2]
[394787203,1763947849448,-150.0,0.0003937,2]
[394787204,1763947849457,-150.0,0.0003937,2]
[394787205,1763947849466,-150.0,0.0003937,2]
[394787206,1763947849476,-150.0,0.0003937,2]
[394787207,1763947849487,-150.0,0.0003937,2]
[394787208,1763947849496,-150.0,0.0003937,2]
[394787209,1763947849506,-150.0,0.0003937,2]
[394787210,1763947849515,-150.0,0.0003937,2]
[394787211,1763947849524,-150.0,0.0003937,2]
[394787212,1763947849533,-150.0,0.0003937,2]
[394787213,1763947849544,-150.0,0.0003937,2]
[394787214,1763947849553,-150.0,0.0003937,2]
[394787215,1763947849563,-4364.14610704,0.00039371,2]
[394787216,1763947849573,-779.0,0.00039375,20]
[394787217,1763947849584,-168.0,0.00039408,2]
[394787218,1763947849594,-411.743659,0.00039419,2]
[394787219,1763947849604,-550.79,0.00039425,2]
[394787220,1763947849614,-1247.2,0.00039425,2]
[394787221,1763947849623,-169.71,0.00039425,2]
[394787222,1763947849634,-417.4,0.00039425,2]
[394787223,1763947849646,-177.6,0.00039425,2]
[394787224,1763947849656,-1211.3,0.00039425,2]
[394787225,1763947849665,-551.04,0.00039425,2]
[394787226,1763947849675,-169.71,0.00039425,2]
[394787227,1763947849686,-300.0,0.00039425,2]
[394787228,1763947849696,-417.4,0.00039425,2]
[394787229,1763947849705,-551.04,0.00039425,2]
[394787230,1763947849715,-1211.3,0.00039425,2]
[394787231,1763947849725,-169.71,0.00039425,2]
[394787232,1763947849734,-417.4,0.00039425,2]
[394787233,1763947849742,-177.6,0.00039425,2]
[394787234,1763947849752,-169.71,0.00039425,2]
[394787235,1763947849761,-417.4,0.00039425,2]
[394787236,1763947849770,-177.6,0.00039425,2]
[394787237,1763947849779,-169.71,0.00039425,2]
[394787238,1763947849788,-551.04,0.00039425,2]
[394787239,1763947849798,-417.4,0.00039425,2]
[394787240,1763947849807,-551.04,0.00039425,2]
[394787241,1763947849816,-417.4,0.00039425,2]
[394787242,1763947849825,-177.6,0.00039425,2]
[394787243,1763947849834,-345.11,0.00039425,2]
[394787244,1763947849843,-551.04,0.00039425,2]
[394787245,1763947849852,-177.6,0.00039425,2]
[394787246,1763947849861,-417.4,0.00039425,2]
[394787247,1763947849869,-339.28,0.00039425,2]
[394787248,1763947849878,-177.6,0.00039425,2]
[394787249,1763947849887,-169.71,0.00039425,2]
[394787250,1763947849898,-551.04,0.00039425,2]
[394787251,1763947849907,-417.4,0.00039425,2]
[394787252,1763947849916,-551.04,0.00039425,2]
[394787253,1763947849926,-177.6,0.00039425,2]
[394787254,1763947849935,-169.71,0.00039425,2]
[394787255,1763947849944,-417.4,0.00039425,2]
[394787256,1763947849953,-551.04,0.00039425,2]
[394787257,1763947849962,-169.71,0.00039425,2]
[394787258,1763947849971,-177.6,0.00039425,2]
[394787259,1763947849980,-415.9,0.00039425,2]
[394787260,1763947849995,-177.6,0.00039425,2]
[394787261,1763947850005,-551.04,0.00039425,2]
[394787262,1763947850015,-169.5,0.00039425,2]
[394787263,1763947850024,-834.8,0.00039425,2]
[394787264,1763947850034,-551.04,0.00039425,2]
[394787265,1763947850043,-177.6,0.00039425,2]
[394787266,1763947850052,-417.4,0.00039425,2]
[394787267,1763947850062,-177.6,0.00039425,2]
[394787268,1763947850072,-1098.8,0.00039425,2]
[394787269,1763947850081,-417.4,0.00039425,2]
[394787270,1763947850091,-417.4,0.00039425,2]
[394787271,1763947850101,-177.6,0.00039425,2]
[394787272,1763947850111,-177.6,0.00039425,2]
[394787273,1763947850121,-417.4,0.00039425,2]
[394787274,1763947850131,-417.4,0.00039425,2]
[394787275,1763947850141,-177.6,0.00039425,2]
[394787276,1763947850151,-416.65,0.00039425,2]
[394787277,1763947850162,-177.6,0.00039425,2]
[394787278,1763947850172,-177.6,0.00039425,2]
[394787279,1763947850181,-177.6,0.00039425,2]
[394787280,1763947850193,-177.6,0.00039425,2]
[394787281,1763947850203,-177.6,0.00039425,2]
[394787282,1763947850213,-177.6,0.00039425,2]
[394787283,1763947850222,-173.01,0.00039425,2]
[394787284,1763947850232,-679.24,0.00039452,8]
[394787285,1763947850243,-323.27198371,0.00039452,8]
[394787286,1763947850253,-500.0,0.00039452,8]
[394787287,1763947850263,-500.0,0.00039452,8]
[394787288,1763947850273,-500.0,0.00039452,8]
[394787289,1763947850282,-500.0,0.00039452,8]
[394787290,1763947850292,-500.0,0.00039452,8]
[394787291,1763947850302,-276.01127088,0.00039452,8]
[394787292,1763947850312,-500.0,0.00039452,8]
[394787293,1763947850322,-500.0,0.00039452,8]
[394787294,1763947850332,-595.68489997,0.00039452,8]
[394787295,1763947850342,-1067.0,0.00039452,8]
[394787296,1763947850352,-532.27815117,0.00039452,8]
[394787297,1763947850361,-500.0,0.00039452,8]
[394787298,1763947850371,-500.0,0.00039452,8]
[394787299,1763947850380,-500.0,0.00039452,8]
[394787300,1763947850394,-500.0,0.00039452,8]
[394787301,1763947850404,-1329.76,0.00039452,8]
[394787302,1763947850414,-500.0,0.00039452,8]
[394787303,1763947850425,-619.1702192,0.00039452,8]
[394787304,1763947850435,-500.0,0.00039452,8]
[394787305,1763947850445,-500.0,0.00039452,8]
[394787306,1763947850455,-500.0,0.00039452,8]
[394787307,1763947850464,-194.04729425,0.00039452,8]
[394787308,1763947850474,-500.0,0.00039452,8]
[394787309,1763947850484,-500.0,0.00039452,8]
[394787310,1763947850493,-600.0,0.00039452,30]